fUST/lending_fUST_20260526
["ID","MTS","AMOUNT","RATE_DAILY","PERIOD"]
[422997249,1779731444000,-742.0,8.154e-05,2]
[422997260,1779731444000,-285.0,8.219e-05,2]
[422997258,1779731444000,-500.0,8.219e-05,2]
[422997259,1779731444000,-1525.168362,8.219e-05,2]
[422997256,1779731444000,-500.0,8.219e-05,2]
[422997257,1779731444000,-500.0,8.219e-05,2]
[422997253,1779731444000,-500.0,8.219e-05,2]
[422997254,1779731444000,-268.93506109,8.219e-05,2]
[422997255,1779731444000,-231.06493891,8.219e-05,2]
[422997290,1779731446000,-500.0,5.153e-05,2]
[422997282,1779731446000,-425.49421032,5.153e-05,2]
[422997284,1779731446000,-500.0,5.153e-05,2]
[422997286,1779731446000,-500.0,5.153e-05,2]
[422997289,1779731446000,-500.0,5.153e-05,2]
[422997280,1779731446000,-500.0,5.153e-05,2]
[422997278,1779731446000,-500.0,5.153e-05,2]
[422997292,1779731446000,-500.0,5.153e-05,2]
[422997294,1779731446000,-500.0,5.153e-05,2]
[422997300,1779731446000,-500.0,5.153e-05,2]
[422997314,1779731446000,-500.0,5.153e-05,2]
[422997296,1779731446000,-500.0,5.153e-05,2]
[422997298,1779731446000,-500.0,5.153e-05,2]
[422997302,1779731446000,-500.0,5.153e-05,2]
[422997308,1779731446000,-500.0,5.153e-05,2]
[422997310,1779731446000,-500.0,5.153e-05,2]
[422997306,1779731446000,-500.0,5.153e-05,2]
[422997312,1779731446000,-500.0,5.153e-05,2]
[422997304,1779731446000,-500.0,5.153e-05,2]
[422997396,1779731447000,-500.0,8.219e-05,2]
[422997394,1779731447000,-904.23,8.219e-05,2]
[422997392,1779731447000,-500.0,8.219e-05,2]
[422997378,1779731447000,-859.27,8.219e-05,2]
[422997390,1779731447000,-500.0,8.219e-05,2]
[422997376,1779731447000,-950.06,8.219e-05,2]
[422997369,1779731447000,-500.0,8.219e-05,2]
[422997372,1779731447000,-533.57,8.219e-05,2]
[422997374,1779731447000,-500.0,8.219e-05,2]
[422997371,1779731447000,-500.0,8.219e-05,2]
[422997399,1779731447000,-527.82,8.219e-05,2]
[422997389,1779731447000,-500.0,8.219e-05,2]
[422997398,1779731447000,-780.26,8.219e-05,2]
[422997435,1779731447000,-500.0,8.219e-05,2]
[422997403,1779731447000,-500.0,8.219e-05,2]
[422997409,1779731447000,-500.0,8.219e-05,2]
[422997407,1779731447000,-500.0,8.219e-05,2]
[422997405,1779731447000,-500.0,8.219e-05,2]
[422997412,1779731447000,-500.0,8.219e-05,2]
[422997414,1779731447000,-606.72,8.219e-05,2]
[422997410,1779731447000,-500.0,8.219e-05,2]
[422997416,1779731447000,-500.0,8.219e-05,2]
[422997429,1779731447000,-500.0,8.219e-05,2]
[422997418,1779731447000,-1605.3,8.219e-05,2]
[422997431,1779731447000,-1591.87,8.219e-05,2]
[422997433,1779731447000,-500.0,8.219e-05,2]
[422997384,1779731447000,-500.0,8.219e-05,2]
[422997402,1779731447000,-500.0,8.219e-05,2]
[422997380,1779731447000,-500.0,8.219e-05,2]
[422997356,1779731447000,-153.995382,8.219e-05,2]
[422997367,1779731447000,-1603.94,8.219e-05,2]
[422997422,1779731447000,-500.0,8.219e-05,2]
[422997318,1779731447000,-500.0,5.153e-05,2]
[422997316,1779731447000,-500.0,5.153e-05,2]
[422997320,1779731447000,-500.0,5.153e-05,2]
[422997323,1779731447000,-946.00217538,5.307e-05,2]
[422997327,1779731447000,-946.00217538,5.307e-05,2]
[422997321,1779731447000,-528.9702061,5.153e-05,2]
[422997330,1779731447000,-946.00217538,5.307e-05,2]
[422997334,1779731447000,-946.00217538,5.307e-05,2]
[422997336,1779731447000,-946.00217538,5.307e-05,2]
[422997325,1779731447000,-946.00217538,5.307e-05,2]
[422997329,1779731447000,-946.00217538,5.307e-05,2]
[422997332,1779731447000,-946.00217538,5.307e-05,2]
[422997338,1779731447000,-1557.794138,8.219e-05,2]
[422997340,1779731447000,-153.995382,8.219e-05,2]
[422997354,1779731447000,-153.995382,8.219e-05,2]
[422997358,1779731447000,-153.995382,8.219e-05,2]
[422997361,1779731447000,-153.995382,8.219e-05,2]
[422997350,1779731447000,-153.995382,8.219e-05,2]
[422997344,1779731447000,-153.995382,8.219e-05,2]
[422997360,1779731447000,-500.0,8.219e-05,2]
[422997346,1779731447000,-500.0,8.219e-05,2]
[422997342,1779731447000,-153.995382,8.219e-05,2]
[422997348,1779731447000,-153.995382,8.219e-05,2]
[422997352,1779731447000,-153.995382,8.219e-05,2]
[422997363,1779731447000,-153.995382,8.219e-05,2]
[422997365,1779731447000,-153.995382,8.219e-05,2]
[422997382,1779731447000,-500.0,8.219e-05,2]
[422997425,1779731447000,-500.0,8.219e-05,2]
[422997489,1779731447000,-500.0,8.219e-05,2]
[422997439,1779731447000,-956.5,8.219e-05,2]
[422997482,1779731447000,-500.0,8.219e-05,2]
[422997483,1779731447000,-326.79020119,8.219e-05,2]
[422997484,1779731447000,-173.20979881,8.219e-05,2]
[422997486,1779731447000,-1320.05,8.219e-05,2]
[422997496,1779731447000,-500.0,8.219e-05,2]
[422997497,1779731447000,-501.59985745,8.219e-05,2]
[422997498,1779731447000,-500.0,8.219e-05,2]
[422997485,1779731447000,-500.0,8.219e-05,2]
[422997488,1779731447000,-500.0,8.219e-05,2]
[422997487,1779731447000,-500.0,8.219e-05,2]
[422997490,1779731447000,-500.0,8.219e-05,2]
[422997491,1779731447000,-500.0,8.219e-05,2]
[422997509,1779731447000,-2724.28,8.219e-05,2]
[422997492,1779731447000,-500.0,8.219e-05,2]
[422997493,1779731447000,-1708.84,8.219e-05,2]
[422997494,1779731447000,-500.0,8.219e-05,2]
[422997495,1779731447000,-500.0,8.219e-05,2]
[422997500,1779731447000,-662.56,8.219e-05,2]
[422997499,1779731447000,-500.0,8.219e-05,2]
[422997502,1779731447000,-500.0,8.219e-05,2]
[422997503,1779731447000,-500.0,8.219e-05,2]
[422997508,1779731447000,-2507.66,8.219e-05,2]
[422997507,1779731447000,-500.0,8.219e-05,2]
[422997505,1779731447000,-606.29500468,8.219e-05,2]
[422997506,1779731447000,-788.77,8.219e-05,2]
[422997504,1779731447000,-500.0,8.219e-05,2]
[422997427,1779731447000,-500.0,8.219e-05,2]
[422997481,1779731447000,-107.02579881,8.219e-05,2]
[422997480,1779731447000,-97.59948466,8.219e-05,2]
[422997501,1779731447000,-500.0,8.219e-05,2]
[422997478,1779731447000,-276.5150003,5.307e-05,2]
[422997479,1779731447000,-669.48717508,5.307e-05,2]
[422997423,1779731447000,-836.28,8.219e-05,2]
[422997437,1779731447000,-500.0,8.219e-05,2]
[422997420,1779731447000,-500.0,8.219e-05,2]
[422997442,1779731447000,-1586.98,8.219e-05,2]
[422997455,1779731447000,-500.0,8.219e-05,2]
[422997459,1779731447000,-500.0,8.219e-05,2]
[422997457,1779731447000,-500.0,8.219e-05,2]
[422997463,1779731447000,-500.0,8.219e-05,2]
[422997461,1779731447000,-302.0,8.219e-05,2]
[422997444,1779731447000,-500.0,8.219e-05,2]
[422997450,1779731447000,-502.86407608,8.219e-05,2]
[422997465,1779731447000,-512.51,8.219e-05,2]
[422997440,1779731447000,-501.62944094,8.219e-05,2]
[422997446,1779731447000,-504.11004245,8.219e-05,2]
[422997448,1779731447000,-500.0,8.219e-05,2]
[422997470,1779731447000,-825.29,8.219e-05,2]
[422997476,1779731447000,-2042.79,8.219e-05,2]
[422997477,1779731447000,-295.37471653,8.219e-05,2]
[422997473,1779731447000,-500.0,8.219e-05,2]
[422997474,1779731447000,-500.0,8.219e-05,2]
[422997475,1779731447000,-1171.42,8.219e-05,2]
[422997471,1779731447000,-500.0,8.219e-05,2]
[422997472,1779731447000,-686.87,8.219e-05,2]
[422997469,1779731447000,-500.0,8.219e-05,2]
[422997452,1779731447000,-498.30865024,8.219e-05,2]
[422997454,1779731447000,-500.0,8.219e-05,2]
[422997467,1779731447000,-500.0,8.219e-05,2]
[422997534,1779731448000,-570.82,8.219e-05,2]
[422997538,1779731448000,-443.680814,8.219e-05,2]
[422997548,1779731448000,-913.6,8.219e-05,2]
[422997537,1779731448000,-500.0,8.219e-05,2]
[422997549,1779731448000,-580.17,8.219e-05,2]
[422997539,1779731448000,-494.95275819,8.219e-05,2]
[422997540,1779731448000,-165.76379857,8.219e-05,2]
[422997542,1779731448000,-500.0,8.219e-05,2]
[422997533,1779731448000,-500.0,8.219e-05,2]
[422997541,1779731448000,-500.0,8.219e-05,2]
[422997551,1779731448000,-500.0,8.219e-05,2]
[422997545,1779731448000,-500.0,8.219e-05,2]
[422997543,1779731448000,-839.7,8.219e-05,2]
[422997544,1779731448000,-500.0,8.219e-05,2]
[422997547,1779731448000,-500.0,8.219e-05,2]
[422997561,1779731448000,-500.0,8.219e-05,2]
[422997562,1779731448000,-567.28,8.219e-05,2]
[422997550,1779731448000,-500.0,8.219e-05,2]
[422997530,1779731448000,-500.0,8.219e-05,2]
[422997553,1779731448000,-1225.26,8.219e-05,2]
[422997546,1779731448000,-500.0,8.219e-05,2]
[422997532,1779731448000,-500.0,8.219e-05,2]
[422997518,1779731448000,-500.0,8.219e-05,2]
[422997529,1779731448000,-1125.42,8.219e-05,2]
[422997554,1779731448000,-2190.57,8.219e-05,2]
[422997511,1779731448000,-500.0,8.219e-05,2]
[422997510,1779731448000,-500.0,8.219e-05,2]
[422997512,1779731448000,-500.0,8.219e-05,2]
[422997515,1779731448000,-738.34,8.219e-05,2]
[422997516,1779731448000,-501.46988491,8.219e-05,2]
[422997514,1779731448000,-517.32,8.219e-05,2]
[422997523,1779731448000,-509.1,8.219e-05,2]
[422997520,1779731448000,-173.59210175,8.219e-05,2]
[422997521,1779731448000,-500.0,8.219e-05,2]
[422997517,1779731448000,-500.0,8.219e-05,2]
[422997513,1779731448000,-500.0,8.219e-05,2]
[422997519,1779731448000,-326.40789825,8.219e-05,2]
[422997522,1779731448000,-1130.99,8.219e-05,2]
[422997536,1779731448000,-500.0,8.219e-05,2]
[422997525,1779731448000,-1872.33,8.219e-05,2]
[422997524,1779731448000,-500.0,8.219e-05,2]
[422997535,1779731448000,-500.0,8.219e-05,2]
[422997527,1779731448000,-500.0,8.219e-05,2]
[422997526,1779731448000,-500.0,8.219e-05,2]
[422997528,1779731448000,-612.25,8.219e-05,2]
[422997531,1779731448000,-501.13424004,8.219e-05,2]
[422997558,1779731448000,-500.0,8.219e-05,2]
[422997552,1779731448000,-912.76,8.219e-05,2]
[422997556,1779731448000,-500.0,8.219e-05,2]
[422997588,1779731448000,-403.95381323,8.219e-05,2]
[422997589,1779731448000,-301.47119287,8.219e-05,2]
[422997592,1779731448000,-500.0,8.219e-05,2]
[422997587,1779731448000,-500.0,8.219e-05,2]
[422997586,1779731448000,-500.0,8.219e-05,2]
[422997590,1779731448000,-713.55,8.219e-05,2]
[422997591,1779731448000,-522.06016921,8.219e-05,2]
[422997585,1779731448000,-500.0,8.219e-05,2]
[422997593,1779731448000,-500.0,8.219e-05,2]
[422997597,1779731448000,-5478.76,8.219e-05,2]
[422997599,1779731448000,-500.0,8.219e-05,2]
[422997595,1779731448000,-3758.03,8.219e-05,2]
[422997598,1779731448000,-500.0,8.219e-05,2]
[422997594,1779731448000,-501.05104627,8.219e-05,2]
[422997596,1779731448000,-501.49393242,8.219e-05,2]
[422997601,1779731448000,-500.0,8.219e-05,2]
[422997602,1779731448000,-500.0,8.219e-05,2]
[422997603,1779731448000,-500.0,8.219e-05,2]
[422997605,1779731448000,-2355.25,8.219e-05,2]
[422997604,1779731448000,-569.67,8.219e-05,2]
[422997560,1779731448000,-573.99,8.219e-05,2]
[422997578,1779731448000,-500.0,8.219e-05,2]
[422997584,1779731448000,-867.82,8.219e-05,2]
[422997600,1779731448000,-500.0,8.219e-05,2]
[422997583,1779731448000,-500.0,8.219e-05,2]
[422997579,1779731448000,-500.0,8.219e-05,2]
[422997555,1779731448000,-1010.86,8.219e-05,2]
[422997557,1779731448000,-501.63689361,8.219e-05,2]
[422997559,1779731448000,-501.44124315,8.219e-05,2]
[422997563,1779731448000,-500.0,8.219e-05,2]
[422997564,1779731448000,-500.0,8.219e-05,2]
[422997567,1779731448000,-483.01716391,8.219e-05,2]
[422997566,1779731448000,-500.0,8.219e-05,2]
[422997569,1779731448000,-500.0,8.219e-05,2]
[422997565,1779731448000,-500.0,8.219e-05,2]
[422997568,1779731448000,-500.0,8.219e-05,2]
[422997572,1779731448000,-500.0,8.219e-05,2]
[422997581,1779731448000,-500.0,8.219e-05,2]
[422997570,1779731448000,-1178.09,8.219e-05,2]
[422997582,1779731448000,-500.0,8.219e-05,2]
[422997580,1779731448000,-500.0,8.219e-05,2]
[422997574,1779731448000,-500.0,8.219e-05,2]
[422997577,1779731448000,-527.89022961,8.219e-05,2]
[422997575,1779731448000,-500.0,8.219e-05,2]
[422997576,1779731448000,-500.0,8.219e-05,2]
[422997573,1779731448000,-500.0,8.219e-05,2]
[422997571,1779731448000,-500.0,8.219e-05,2]
[422997645,1779731449000,-500.0,8.219e-05,2]
[422997658,1779731449000,-1424.08,8.219e-05,2]
[422997657,1779731449000,-500.0,8.219e-05,2]
[422997647,1779731449000,-500.0,8.219e-05,2]
[422997656,1779731449000,-500.0,8.219e-05,2]
[422997646,1779731449000,-500.0,8.219e-05,2]
[422997636,1779731449000,-503.51377231,8.219e-05,2]
[422997640,1779731449000,-550.98845284,8.219e-05,2]
[422997641,1779731449000,-500.0,8.219e-05,2]
[422997642,1779731449000,-2198.62,8.219e-05,2]
[422997650,1779731449000,-500.0,8.219e-05,2]
[422997638,1779731449000,-501.61947116,8.219e-05,2]
[422997639,1779731449000,-501.03714716,8.219e-05,2]
[422997648,1779731449000,-501.32379177,8.219e-05,2]
[422997663,1779731449000,-500.0,8.219e-05,2]
[422997652,1779731449000,-500.0,8.219e-05,2]
[422997655,1779731449000,-526.70886183,8.219e-05,2]
[422997649,1779731449000,-500.0,8.219e-05,2]
[422997654,1779731449000,-501.01109865,8.219e-05,2]
[422997653,1779731449000,-4171.52,8.219e-05,2]
[422997666,1779731449000,-502.34803723,8.219e-05,2]
[422997659,1779731449000,-3295.8,8.219e-05,2]
[422997662,1779731449000,-561.66885688,8.219e-05,2]
[422997661,1779731449000,-500.0,8.219e-05,2]
[422997668,1779731449000,-8701.74,8.219e-05,2]
[422997664,1779731449000,-1685.18,8.219e-05,2]
[422997665,1779731449000,-3205.83,8.219e-05,2]
[422997637,1779731449000,-500.0,8.219e-05,2]
[422997651,1779731449000,-500.0,8.219e-05,2]
[422997643,1779731449000,-500.84169227,8.219e-05,2]
[422997613,1779731449000,-501.41860631,8.219e-05,2]
[422997632,1779731449000,-1853.58,8.219e-05,2]
[422997667,1779731449000,-500.0,8.219e-05,2]
[422997606,1779731449000,-1322.62,8.219e-05,2]
[422997607,1779731449000,-500.0,8.219e-05,2]
[422997608,1779731449000,-500.0,8.219e-05,2]
[422997610,1779731449000,-500.0,8.219e-05,2]
[422997609,1779731449000,-500.0,8.219e-05,2]
[422997612,1779731449000,-380.55839579,8.219e-05,2]
[422997611,1779731449000,-500.0,8.219e-05,2]
[422997616,1779731449000,-500.0,8.219e-05,2]
[422997615,1779731449000,-876.62,8.219e-05,2]
[422997614,1779731449000,-500.0,8.219e-05,2]
[422997619,1779731449000,-500.0,8.219e-05,2]
[422997618,1779731449000,-6179.65,8.219e-05,2]
[422997617,1779731449000,-684.53,8.219e-05,2]
[422997631,1779731449000,-500.0,8.219e-05,2]
[422997621,1779731449000,-6046.57,8.219e-05,2]
[422997620,1779731449000,-500.0,8.219e-05,2]
[422997622,1779731449000,-500.81556408,8.219e-05,2]
[422997625,1779731449000,-1105.66,8.219e-05,2]
[422997626,1779731449000,-500.0,8.219e-05,2]
[422997627,1779731449000,-1310.96,8.219e-05,2]
[422997624,1779731449000,-1903.9,8.219e-05,2]
[422997630,1779731449000,-500.0,8.219e-05,2]
[422997623,1779731449000,-501.3466403,8.219e-05,2]
[422997629,1779731449000,-500.0,8.219e-05,2]
[422997628,1779731449000,-500.0,8.219e-05,2]
[422997635,1779731449000,-500.0,8.219e-05,2]
[422997634,1779731449000,-500.0,8.219e-05,2]
[422997633,1779731449000,-500.0,8.219e-05,2]
[422997644,1779731449000,-500.0,8.219e-05,2]
[422997660,1779731449000,-500.0,8.219e-05,2]
[422997713,1779731449000,-3456.53,8.219e-05,2]
[422997671,1779731449000,-638.79,8.219e-05,2]
[422997703,1779731449000,-500.0,8.219e-05,2]
[422997704,1779731449000,-500.0,8.219e-05,2]
[422997701,1779731449000,-500.0,8.219e-05,2]
[422997707,1779731449000,-2092.66,8.219e-05,2]
[422997709,1779731449000,-8371.44,8.219e-05,2]
[422997708,1779731449000,-500.0,8.219e-05,2]
[422997706,1779731449000,-500.0,8.219e-05,2]
[422997705,1779731449000,-3047.45,8.219e-05,2]
[422997712,1779731449000,-1368.01,8.219e-05,2]
[422997723,1779731449000,-501.81016174,8.219e-05,2]
[422997714,1779731449000,-500.76893733,8.219e-05,2]
[422997724,1779731449000,-44608.82,8.219e-05,2]
[422997715,1779731449000,-5949.93,8.219e-05,2]
[422997700,1779731449000,-500.0,8.219e-05,2]
[422997716,1779731449000,-500.0,8.219e-05,2]
[422997719,1779731449000,-440.00528828,8.219e-05,2]
[422997718,1779731449000,-500.0,8.219e-05,2]
[422997722,1779731449000,-500.0,8.219e-05,2]
[422997720,1779731449000,-2562.42,8.219e-05,2]
[422997721,1779731449000,-1001.93,8.219e-05,2]
[422997725,1779731449000,-500.0,8.219e-05,2]
[422997726,1779731449000,-500.0,8.219e-05,2]
[422997727,1779731449000,-2393.09,8.219e-05,2]
[422997728,1779731449000,-500.0,8.219e-05,2]
[422997729,1779731449000,-500.0,8.219e-05,2]
[422997732,1779731449000,-621.07,8.219e-05,2]
[422997669,1779731449000,-500.0,8.219e-05,2]
[422997730,1779731449000,-296.24958343,8.219e-05,2]
[422997717,1779731449000,-2951.47,8.219e-05,2]
[422997702,1779731449000,-3480.15,8.219e-05,2]
[422997731,1779731449000,-650.0,8.219e-05,2]
[422997711,1779731449000,-500.0,8.219e-05,2]
[422997710,1779731449000,-1926.72,8.219e-05,2]
[422997670,1779731449000,-500.0,8.219e-05,2]
[422997684,1779731449000,-500.0,8.219e-05,2]
[422997674,1779731449000,-500.0,8.219e-05,2]
[422997673,1779731449000,-560.78,8.219e-05,2]
[422997683,1779731449000,-235.39220402,8.219e-05,2]
[422997675,1779731449000,-500.0,8.219e-05,2]
[422997676,1779731449000,-500.0,8.219e-05,2]
[422997678,1779731449000,-500.0,8.219e-05,2]
[422997677,1779731449000,-1978.98,8.219e-05,2]
[422997680,1779731449000,-500.0,8.219e-05,2]
[422997682,1779731449000,-5935.65,8.219e-05,2]
[422997681,1779731449000,-793.1,8.219e-05,2]
[422997679,1779731449000,-2465.95,8.219e-05,2]
[422997690,1779731449000,-3060.03,8.219e-05,2]
[422997672,1779731449000,-501.48493491,8.219e-05,2]
[422997693,1779731449000,-2763.66,8.219e-05,2]
[422997698,1779731449000,-498.55499836,8.219e-05,2]
[422997694,1779731449000,-3068.24,8.219e-05,2]
[422997696,1779731449000,-667.94,8.219e-05,2]
[422997697,1779731449000,-500.0,8.219e-05,2]
[422997692,1779731449000,-500.0,8.219e-05,2]
[422997685,1779731449000,-41096.320361,8.219e-05,2]
[422997699,1779731449000,-3003.38,8.219e-05,2]
[422997689,1779731449000,-658.67,8.219e-05,2]
[422997686,1779731449000,-1228.93,8.219e-05,2]
[422997695,1779731449000,-500.0,8.219e-05,2]
[422997687,1779731449000,-500.0,8.219e-05,2]
[422997688,1779731449000,-500.0,8.219e-05,2]
[422997691,1779731449000,-951.6,8.219e-05,2]
[422997775,1779731450000,-500.0,8.493e-05,2]
[422997771,1779731450000,-1603.94,8.493e-05,2]
[422997769,1779731450000,-153.995382,8.493e-05,2]
[422997772,1779731450000,-500.0,8.493e-05,2]
[422997773,1779731450000,-500.0,8.493e-05,2]
[422997768,1779731450000,-500.0,8.493e-05,2]
[422997770,1779731450000,-153.99538293,8.493e-05,2]
[422997766,1779731450000,-153.995382,8.493e-05,2]
[422997765,1779731450000,-153.995382,8.493e-05,2]
[422997776,1779731450000,-950.06,8.493e-05,2]
[422997763,1779731450000,-153.995382,8.493e-05,2]
[422997767,1779731450000,-153.995382,8.493e-05,2]
[422997796,1779731450000,-1605.3,8.493e-05,2]
[422997782,1779731450000,-500.0,8.493e-05,2]
[422997786,1779731450000,-780.26,8.493e-05,2]
[422997781,1779731450000,-500.0,8.493e-05,2]
[422997778,1779731450000,-500.0,8.493e-05,2]
[422997779,1779731450000,-500.0,8.493e-05,2]
[422997780,1779731450000,-500.0,8.493e-05,2]
[422997783,1779731450000,-500.0,8.493e-05,2]
[422997785,1779731450000,-500.0,8.493e-05,2]
[422997784,1779731450000,-904.23,8.493e-05,2]
[422997787,1779731450000,-527.82,8.493e-05,2]
[422997790,1779731450000,-500.0,8.493e-05,2]
[422997789,1779731450000,-500.0,8.493e-05,2]
[422997788,1779731450000,-592.56004284,8.493e-05,2]
[422997774,1779731450000,-533.57,8.493e-05,2]
[422997777,1779731450000,-859.27,8.493e-05,2]
[422997764,1779731450000,-153.995382,8.493e-05,2]
[422997746,1779731450000,-500.0,8.219e-05,2]
[422997759,1779731450000,-500.0,8.493e-05,2]
[422997792,1779731450000,-500.0,8.493e-05,2]
[422997737,1779731450000,-500.0,8.219e-05,2]
[422997736,1779731450000,-500.0,8.219e-05,2]
[422997734,1779731450000,-8341.51,8.219e-05,2]
[422997735,1779731450000,-500.0,8.219e-05,2]
[422997733,1779731450000,-845.1,8.219e-05,2]
[422997739,1779731450000,-500.0,8.219e-05,2]
[422997749,1779731450000,-500.33137294,8.219e-05,2]
[422997740,1779731450000,-500.0,8.219e-05,2]
[422997738,1779731450000,-317.29039818,8.219e-05,2]
[422997744,1779731450000,-501.56174332,8.219e-05,2]
[422997743,1779731450000,-500.0,8.219e-05,2]
[422997741,1779731450000,-1390.69,8.219e-05,2]
[422997757,1779731450000,-3780.6547,8.493e-05,2]
[422997742,1779731450000,-500.0,8.219e-05,2]
[422997747,1779731450000,-500.49931699,8.219e-05,2]
[422997748,1779731450000,-2461.95,8.219e-05,2]
[422997751,1779731450000,-500.0,8.219e-05,2]
[422997762,1779731450000,-153.995382,8.493e-05,2]
[422997752,1779731450000,-151.0,8.219e-05,2]
[422997761,1779731450000,-500.0,8.493e-05,2]
[422997750,1779731450000,-500.0,8.219e-05,2]
[422997753,1779731450000,-152.435332,8.219e-05,2]
[422997754,1779731450000,-562.571,8.355e-05,2]
[422997755,1779731450000,-150.307,8.355e-05,2]
[422997760,1779731450000,-500.0,8.493e-05,2]
[422997758,1779731450000,-500.0,8.493e-05,2]
[422997756,1779731450000,-500.0,8.439e-05,2]
[422997745,1779731450000,-501.31940103,8.219e-05,2]
[422997791,1779731450000,-500.0,8.493e-05,2]
[422997846,1779731450000,-500.0,8.493e-05,2]
[422997793,1779731450000,-500.0,8.493e-05,2]
[422997837,1779731450000,-500.0,8.493e-05,2]
[422997828,1779731450000,-500.0,8.493e-05,2]
[422997836,1779731450000,-500.0,8.493e-05,2]
[422997829,1779731450000,-1320.05,8.493e-05,2]
[422997825,1779731450000,-2042.79,8.493e-05,2]
[422997833,1779731450000,-1708.84,8.493e-05,2]
[422997831,1779731450000,-500.0,8.493e-05,2]
[422997832,1779731450000,-500.0,8.493e-05,2]
[422997830,1779731450000,-500.0,8.493e-05,2]
[422997834,1779731450000,-507.07663632,8.493e-05,2]
[422997849,1779731450000,-738.34,8.493e-05,2]
[422997841,1779731450000,-500.0,8.493e-05,2]
[422997840,1779731450000,-788.77,8.493e-05,2]
[422997826,1779731450000,-516.52817544,8.493e-05,2]
[422997843,1779731450000,-1082.09643597,8.493e-05,2]
[422997844,1779731450000,-2724.28,8.493e-05,2]
[422997838,1779731450000,-500.0,8.493e-05,2]
[422997853,1779731450000,-1130.99,8.493e-05,2]
[422997847,1779731450000,-500.0,8.493e-05,2]
[422997845,1779731450000,-500.0,8.493e-05,2]
[422997848,1779731450000,-517.32,8.493e-05,2]
[422997850,1779731450000,-500.0,8.493e-05,2]
[422997852,1779731450000,-500.0,8.493e-05,2]
[422997851,1779731450000,-500.0,8.493e-05,2]
[422997855,1779731450000,-500.0,8.493e-05,2]
[422997856,1779731450000,-1872.33,8.493e-05,2]
[422997854,1779731450000,-509.1,8.493e-05,2]
[422997794,1779731450000,-606.72,8.493e-05,2]
[422997842,1779731450000,-1425.56356403,8.493e-05,2]
[422997827,1779731450000,-500.0,8.493e-05,2]
[422997839,1779731450000,-500.0,8.493e-05,2]
[422997824,1779731450000,-1171.42,8.493e-05,2]
[422997795,1779731450000,-500.0,8.493e-05,2]
[422997797,1779731450000,-500.0,8.493e-05,2]
[422997835,1779731450000,-662.56,8.493e-05,2]
[422997800,1779731450000,-500.0,8.493e-05,2]
[422997801,1779731450000,-500.0,8.493e-05,2]
[422997802,1779731450000,-376.55982873,8.493e-05,2]
[422997798,1779731450000,-500.0,8.493e-05,2]
[422997805,1779731450000,-501.55499102,8.493e-05,2]
[422997808,1779731450000,-1586.98,8.493e-05,2]
[422997803,1779731450000,-1591.87,8.493e-05,2]
[422997804,1779731450000,-500.0,8.493e-05,2]
[422997807,1779731450000,-956.5,8.493e-05,2]
[422997810,1779731450000,-500.34368594,8.493e-05,2]
[422997806,1779731450000,-500.0,8.493e-05,2]
[422997799,1779731450000,-836.28,8.493e-05,2]
[422997823,1779731450000,-500.0,8.493e-05,2]
[422997809,1779731450000,-500.0,8.493e-05,2]
[422997821,1779731450000,-500.0,8.493e-05,2]
[422997819,1779731450000,-825.29,8.493e-05,2]
[422997815,1779731450000,-500.0,8.493e-05,2]
[422997816,1779731450000,-512.51,8.493e-05,2]
[422997811,1779731450000,-500.0,8.493e-05,2]
[422997820,1779731450000,-500.0,8.493e-05,2]
[422997822,1779731450000,-686.87,8.493e-05,2]
[422997812,1779731450000,-500.0,8.493e-05,2]
[422997814,1779731450000,-500.0,8.493e-05,2]
[422997813,1779731450000,-500.0,8.493e-05,2]
[422997818,1779731450000,-470.94390729,8.493e-05,2]
[422997817,1779731450000,-500.0,8.493e-05,2]
[422997875,1779731451000,-913.6,8.493e-05,2]
[422997868,1779731451000,-500.0,8.493e-05,2]
[422997870,1779731451000,-839.7,8.493e-05,2]
[422997869,1779731451000,-501.6020872,8.493e-05,2]